bitfinex/quotes_BTCUSD_20241022
["timestamp","ask_amount","ask_price","bid_price","bid_amount"]
[1729600949182,4.729322,66969.0,66968.0,0.10784672]
[1729600950497,4.87828115,66969.0,66968.0,0.10784672]
[1729600950705,5.04952804,66969.0,66968.0,0.10384672]
[1729600951387,5.04952804,66969.0,66968.0,0.10184672]
[1729600951870,5.05052804,66969.0,66968.0,0.10184672]
[1729600952634,4.90156889,66969.0,66968.0,0.10184672]
[1729600952856,4.44456889,66969.0,66968.0,0.10184672]
[1729600953307,3.34356889,66969.0,66968.0,0.10184672]
[1729600953556,2.367322,66969.0,66968.0,0.10184672]
[1729600957504,2.218,66969.0,66968.0,0.10184672]
[1729600957709,1.983322,66969.0,66968.0,0.10408678]
[1729600957942,1.932322,66969.0,66968.0,0.10408678]
[1729600958174,1.932322,66969.0,66968.0,0.10184672]
[1729600958820,0.761,66969.0,66968.0,0.25117172]
[1729600959042,0.001,66969.0,66968.0,0.35017172]
[1729600959267,0.001,66969.0,66968.0,0.18911374]
[1729600959485,0.001,66969.0,66968.0,0.33843874]
[1729600959693,0.298613,66977.0,66968.0,0.18911374]
[1729600959889,4.58,66976.0,66968.0,0.19211374]
[1729600960099,0.001,66969.0,66968.0,0.19911374]
[1729600960296,0.001,66969.0,66968.0,0.33679804]
[1729600960512,0.001,66969.0,66968.0,0.34843774]
[1729600960957,0.149302,66978.0,66971.0,0.149317]
[1729600961161,2.962,66977.0,66972.0,0.01160737]
[1729600961356,0.149309,66975.0,66972.0,0.01160737]
[1729600961603,3.32,66974.0,66969.0,0.149322]
[1729600961805,3.32,66974.0,66968.0,0.32643319]
[1729600961806,4.458,66975.0,66968.0,0.32643319]
[1729600962014,0.1,66979.0,66970.0,0.01162353]
[1729600962386,4.878608,66978.0,66968.0,0.33743319]
[1729600962600,0.447921,66976.0,66971.0,0.01161545]
[1729600962859,4.72931,66975.0,66968.0,0.47575719]
[1729600963063,4.58,66974.0,66968.0,0.48275719]
[1729600963306,4.58,66974.0,66970.0,0.003]
[1729600963307,4.406,66974.0,66970.0,0.003]
[1729600963529,0.149307,66976.0,66970.0,0.15232]
[1729600963755,0.1,66979.0,66970.0,0.15232]
[1729600963756,1.546,66975.0,66970.0,0.15195915]
[1729600963996,2.689,66977.0,66971.0,0.1605746]
[1729600964217,0.00165,66981.0,66976.0,0.298613]
[1729600964438,0.00165,66981.0,66977.0,0.14895915]
[1729600964439,0.2237587,66980.0,66977.0,0.14895915]
[1729600964654,0.00165,66981.0,66977.0,0.16051854]
[1729600964655,0.150947,66981.0,66977.0,0.16051854]
[1729600964866,0.00165,66981.0,66977.0,0.16051854]
[1729600965594,0.149301,66979.0,66977.0,0.16051854]
[1729600965839,0.36139239,66981.0,66977.0,0.16051854]
[1729600966085,4.58,66980.0,66977.0,0.16051854]
[1729600966322,0.149302,66978.0,66977.0,0.01155939]
[1729600966571,0.149309,66975.0,66974.0,0.171]
[1729600966819,4.729309,66975.0,66974.0,0.171]
[1729600967297,4.58,66975.0,66974.0,0.171]
[1729600967756,0.149309,66975.0,66974.0,0.171]
[1729600968033,4.58,66976.0,66974.0,0.171]
[1729600968753,0.149307,66977.0,66974.0,0.171]
[1729600968997,0.151309,66975.0,66974.0,0.171]
[1729600969258,4.731309,66975.0,66974.0,0.171]
[1729600969495,4.58,66975.0,66974.0,0.171]
[1729600970482,4.729309,66975.0,66974.0,0.171]
[1729600971235,4.58,66975.0,66974.0,0.171]
[1729600971447,4.729305,66977.0,66974.0,0.171]
[1729600971687,0.002,66975.0,66974.0,0.171]
[1729600971918,4.73095915,66975.0,66974.0,0.171]
[1729600972144,4.582,66975.0,66974.0,0.171]
[1729600972620,4.58,66975.0,66974.0,0.171]
[1729600972849,4.58,66975.0,66974.0,0.171825]
[1729600973790,4.58,66976.0,66974.0,0.171825]
[1729600974018,4.58,66975.0,66974.0,0.171825]
[1729600974293,4.58,66976.0,66974.0,0.171825]
[1729600974529,4.729307,66976.0,66974.0,0.171825]
[1729600974735,4.582,66975.0,66974.0,0.171825]
[1729600975366,4.58,66975.0,66974.0,0.171825]
[1729600975590,4.729307,66976.0,66974.0,0.171825]
[1729600975843,4.58,66975.0,66974.0,0.171825]
[1729600976071,3.381,66975.0,66974.0,0.171825]
[1729600976509,4.039305,66977.0,66974.0,0.171825]
[1729600976743,4.039,66976.0,66974.0,0.321136]
[1729600976966,3.494,66975.0,66974.0,0.171825]
[1729600977199,4.455,66979.0,66974.0,0.171825]
[1729600977432,4.035,66978.0,66974.0,0.171825]
[1729600977682,0.788,66977.0,66974.0,0.321134]
[1729600977935,0.00165,66981.0,66976.0,0.149307]
[1729600978237,1.619,66980.0,66976.0,0.149307]
[1729600978378,1.61458935,66980.0,66977.0,0.149304]
[1729600978629,0.00165,66981.0,66975.0,0.14895915]
[1729600978630,1.248,66979.0,66975.0,0.14895915]
[1729600978880,0.888,66978.0,66975.0,0.14895915]
[1729600979116,0.389,66977.0,66975.0,0.14895915]
[1729600979344,0.149299,66980.0,66976.0,0.0115583]
[1729600979587,1.195,66979.0,66976.0,0.0115583]
[1729600979825,1.158,66979.0,66976.0,0.0115583]
[1729600980066,2.458,66979.0,66976.0,0.0115583]
[1729600980315,1.162,66979.0,66976.0,0.0115583]
[1729600980556,2.231,66978.0,66976.0,0.0115583]
[1729600980845,1.836,66979.0,66976.0,0.0125583]
[1729600981076,0.149304,66977.0,66976.0,0.0115583]
[1729600981311,4.57559,66977.0,66976.0,0.0115583]
[1729600981533,4.57559,66977.0,66975.0,0.14895915]
[1729600981760,4.57559,66978.0,66975.0,0.14895915]
[1729600982024,1.495,66977.0,66975.0,0.14895915]
[1729600982268,1.912,66978.0,66976.0,0.0125583]
[1729600982509,1.485,66977.0,66976.0,0.0125583]
[1729600982737,1.485,66977.0,66976.0,0.1618653]
[1729600982738,0.001,66977.0,66976.0,0.1618653]
[1729600982977,0.001,66977.0,66976.0,0.1608653]
[1729600983224,0.001,66977.0,66976.0,0.30982445]
[1729600983477,0.001,66977.0,66976.0,0.16051745]
[1729600983962,0.00165,66981.0,66976.0,0.16151745]
[1729600984181,0.149299,66980.0,66976.0,0.16151745]
[1729600984433,0.149298,66980.0,66976.0,0.16151745]
[1729600984922,0.149302,66978.0,66976.0,0.16151745]
[1729600985170,0.149304,66977.0,66976.0,0.16151745]
[1729600985418,0.149304,66978.0,66976.0,0.16051745]
[1729600985652,0.149304,66977.0,66976.0,0.16751745]
[1729600985951,0.149303,66978.0,66976.0,0.16251745]
[1729600986383,0.149303,66978.0,66976.0,0.16751745]
[1729600986626,0.149303,66978.0,66976.0,0.16251745]
[1729600986850,0.149303,66978.0,66976.0,0.16751745]
[1729600987076,0.149303,66978.0,66976.0,0.16551745]
[1729600987311,0.149303,66978.0,66976.0,0.16051745]
[1729600987547,0.149303,66978.0,66976.0,0.0115583]
[1729600987548,0.25893477,66977.0,66976.0,0.0115583]
[1729600987786,4.83452477,66977.0,66976.0,0.0115583]
[1729600988003,4.83452477,66977.0,66975.0,0.000825]
[1729600988004,0.149307,66976.0,66975.0,0.000825]
[1729600988223,4.724897,66976.0,66975.0,0.000825]
[1729600988478,4.76916327,66976.0,66975.0,0.000825]
[1729600988925,4.76916249,66976.0,66975.0,0.000825]
[1729600989164,4.724897,66976.0,66975.0,0.000825]
[1729600989365,4.724897,66976.0,66975.0,0.00019631]
[1729600989585,4.76916249,66976.0,66975.0,0.00019631]
[1729600990521,4.77116249,66976.0,66975.0,0.00019631]
[1729600993141,4.87585615,66976.0,66975.0,0.00019631]
[1729600993747,5.09998758,66976.0,66975.0,0.00019631]
[1729600993759,5.11383694,66976.0,66975.0,0.00019631]
[1729600994092,5.11383694,66976.0,66974.0,0.00067211]
[1729600994093,0.249309,66975.0,66974.0,0.00067211]
[1729600994333,0.249313,66973.0,66972.0,0.02138926]
[1729600994553,2.88642093,66973.0,66969.0,0.2237587]
[1729600994765,0.04428061,66971.0,66969.0,0.2237587]
[1729600994979,4.57559,66970.0,66968.0,0.00017404]
[1729600995196,0.149322,66969.0,66968.0,0.00017404]
[1729600995416,4.724912,66969.0,66968.0,0.00017404]
[1729600996725,4.57559,66969.0,66968.0,0.00017404]
[1729600997409,4.72454915,66969.0,66968.0,0.00017404]
[1729600997631,4.87487115,66969.0,66968.0,0.00017404]
[1729600997857,4.87487115,66969.0,66968.0,0.02354579]
[1729601000613,5.03835847,66969.0,66968.0,0.02354579]
[1729601000832,5.03835307,66969.0,66968.0,0.02354579]
[1729601001055,5.12692771,66969.0,66968.0,0.02354579]
[1729601001570,5.05218943,66969.0,66968.0,0.02354579]
[1729601002444,5.15118943,66969.0,66968.0,0.02354579]
[1729601002869,5.15618943,66969.0,66968.0,0.02354579]
[1729601003084,5.00715946,66969.0,66968.0,0.02354579]
[1729601003296,5.00715946,66969.0,66968.0,0.02454579]
[1729601003512,5.01315946,66969.0,66968.0,0.02454579]
[1729601003760,5.00815946,66969.0,66968.0,0.02454579]
[1729601003981,5.00215946,66969.0,66968.0,0.02354579]
[1729601004197,5.15811861,66969.0,66968.0,0.02454579]
[1729601004619,5.00915946,66969.0,66968.0,0.02454579]
[1729601005530,5.11879023,66969.0,66968.0,0.02437175]
[1729601005779,5.11879023,66969.0,66961.0,0.28375869]
[1729601005780,0.249338,66962.0,66961.0,0.28375869]
[1729601006001,5.25392902,66962.0,66961.0,0.28375869]
[1729601006231,5.49402453,66962.0,66961.0,0.07170327]
[1729601006468,5.51502453,66962.0,66961.0,0.05999999]
[1729601006691,5.56019589,66962.0,66961.0,0.05999999]
[1729601006914,5.66596393,66962.0,66961.0,0.05999999]
[1729601007143,0.28734,66961.0,66960.0,0.6196762]
[1729601007360,5.26997943,66961.0,66960.0,0.6196762]
[1729601007585,5.49206104,66961.0,66960.0,0.6196762]
[1729601007806,5.49173606,66961.0,66960.0,0.6196762]
[1729601008414,5.72524497,66961.0,66960.0,0.6196762]
[1729601008625,5.61279472,66961.0,66960.0,0.6196762]
[1729601008899,5.61479472,66961.0,66960.0,0.6196762]
[1729601009099,5.61475047,66961.0,66960.0,0.6196762]
[1729601009539,5.71703462,66961.0,66960.0,0.6196762]
[1729601010415,5.62875047,66961.0,66960.0,0.6196762]
[1729601010847,5.63675047,66961.0,66960.0,0.6206762]
[1729601011072,5.62875047,66961.0,66960.0,0.6196762]
[1729601011521,5.47366376,66961.0,66960.0,0.6206762]
[1729601011771,5.45966376,66961.0,66960.0,0.6206762]
[1729601011987,5.63649984,66961.0,66960.0,0.6206762]
[1729601012204,5.63449984,66961.0,66960.0,0.6206762]
[1729601012431,5.63450176,66961.0,66960.0,0.6206762]
[1729601012682,5.47166376,66961.0,66960.0,0.6215012]
[1729601012888,5.1862511,66961.0,66960.0,0.6215012]
[1729601013115,5.18245899,66961.0,66960.0,0.6215012]
[1729601013341,5.01849984,66961.0,66960.0,0.6215012]
[1729601013566,4.90976197,66961.0,66960.0,0.6215012]
[1729601013786,4.11583197,66961.0,66960.0,0.7927012]
[1729601014025,4.43674181,66961.0,66960.0,0.6215012]
[1729601014229,4.58570096,66961.0,66960.0,0.63325157]
[1729601014428,4.43674181,66961.0,66960.0,0.6215012]
[1729601014639,4.25190984,66961.0,66960.0,0.6205012]
[1729601015062,4.36590984,66961.0,66960.0,0.6215012]
[1729601015271,4.35890984,66961.0,66960.0,0.6205012]
[1729601015478,4.35190984,66961.0,66960.0,0.6205012]
[1729601015629,4.50686899,66961.0,66960.0,0.6205012]
[1729601015836,4.51286899,66961.0,66960.0,0.6205012]
[1729601018318,4.36390984,66961.0,66960.0,0.6205012]
[1729601020507,4.87090984,66961.0,66960.0,0.6205012]
[1729601021857,4.12090984,66961.0,66960.0,0.6205012]
[1729601022287,3.27690984,66961.0,66960.0,0.6965012]
[1729601023605,2.18790984,66961.0,66960.0,0.7879012]
[1729601023827,2.18790984,66961.0,66960.0,0.79964556]
[1729601024260,2.16529915,66961.0,66960.0,0.79964556]
[1729601024520,2.33686899,66961.0,66960.0,0.79964556]
[1729601025023,2.18790984,66961.0,66960.0,0.79964556]
[1729601025256,2.18790984,66961.0,66960.0,0.80188558]
[1729601025257,0.38534,66961.0,66960.0,0.80188558]
[1729601025490,0.28534,66961.0,66960.0,0.80188558]
[1729601026167,0.28699,66961.0,66960.0,0.79964556]
[1729601026900,0.45855984,66961.0,66960.0,0.79964556]
[1729601028096,0.59462089,66961.0,66960.0,0.79964556]
[1729601029301,0.45855984,66961.0,66960.0,0.79964556]
[1729601030541,0.39670778,66961.0,66960.0,0.79964556]
[1729601031271,4.84829778,66961.0,66960.0,0.79964556]
[1729601031766,4.84829778,66961.0,66960.0,0.7879012]
[1729601032766,4.84829778,66961.0,66960.0,0.7119012]
[1729601032997,4.84829778,66961.0,66960.0,0.6205012]
[1729601033220,4.99725693,66961.0,66960.0,0.6205012]
[1729601033458,5.09725693,66961.0,66960.0,0.6205012]
[1729601033929,5.17729165,66961.0,66960.0,0.6205012]
[1729601034430,5.36237281,66961.0,66960.0,0.6205012]
[1729601036591,5.27408913,66961.0,66960.0,0.6205012]
[1729601036851,5.10375327,66961.0,66960.0,0.6205012]
[1729601037078,5.01455089,66961.0,66960.0,0.6205012]
[1729601038428,5.0763305,66961.0,66960.0,0.6205012]
[1729601038644,5.44680259,66961.0,66960.0,0.6205012]
[1729601038872,5.35846152,66961.0,66960.0,0.6205012]
[1729601039092,5.33592328,66961.0,66960.0,0.6205012]
[1729601041141,5.33595178,66961.0,66960.0,0.6205012]
[1729601041370,5.44640777,66961.0,66960.0,0.6205012]
[1729601041804,5.42433358,66961.0,66960.0,0.6205012]
[1729601042145,5.33595178,66961.0,66960.0,0.6205012]
[1729601042592,5.61790516,66961.0,66960.0,0.6205012]
[1729601042805,5.50744917,66961.0,66960.0,0.6205012]
[1729601043020,5.66140832,66961.0,66960.0,0.6205012]
[1729601043238,5.68354015,66961.0,66960.0,0.6205012]
[1729601043686,5.51204276,66961.0,66960.0,0.6205012]
[1729601043905,5.48991093,66961.0,66960.0,0.6205012]
[1729601044559,5.66140832,66961.0,66960.0,0.6205012]
[1729601045451,5.79395324,66961.0,66960.0,0.6205012]
[1729601046133,5.81608388,66961.0,66960.0,0.6205012]
[1729601046669,5.91212269,66961.0,66960.0,0.6205012]
[1729601046888,6.00132269,66961.0,66960.0,0.6205012]
[1729601047131,5.97919205,66961.0,66960.0,0.6205012]
[1729601047322,5.97919932,66961.0,66960.0,0.6205012]
[1729601048447,5.41558363,66961.0,66960.0,0.6205012]
[1729601048683,4.52391251,66961.0,66960.0,0.8007012]
[1729601048923,4.59856194,66961.0,66960.0,0.8007012]
[1729601049163,4.59856066,66961.0,66960.0,0.8007012]
[1729601049398,0.53667654,66961.0,66960.0,0.8007012]
[1729601049623,5.32212893,66961.0,66960.0,0.8007012]
[1729601049845,5.16445956,66961.0,66960.0,0.72965586]
[1729601050064,5.16445956,66961.0,66960.0,0.7179012]
[1729601050743,5.15063154,66961.0,66960.0,0.7179012]
[1729601051035,5.33595634,66961.0,66960.0,0.6205012]
[1729601051711,5.7515494,66961.0,66960.0,0.10532614]
[1729601051937,5.52291549,66961.0,66960.0,0.10532614]
[1729601052404,5.51691549,66961.0,66960.0,0.10532614]
[1729601052648,5.51091549,66961.0,66960.0,0.10532614]
[1729601052894,5.52309601,66961.0,66960.0,0.10532614]
[1729601053117,5.51709601,66961.0,66960.0,0.10532614]
[1729601053331,5.51309601,66961.0,66960.0,0.10532614]
[1729601053786,5.52709601,66961.0,66960.0,0.10532614]
[1729601054443,5.52709601,66961.0,66960.0,0.10532614]
[1729601054662,5.53909601,66961.0,66960.0,0.10632614]
[1729601055008,5.52509601,66961.0,66960.0,0.10532614]
[1729601055080,5.51109601,66961.0,66960.0,0.10532614]
[1729601055272,5.52509601,66961.0,66960.0,0.10632614]
[1729601055465,5.53909601,66961.0,66960.0,0.10632614]
[1729601056212,5.53909601,66961.0,66957.0,0.006]
[1729601056213,0.166347,66958.0,66957.0,0.006]
[1729601056455,5.18899647,66958.0,66957.0,0.006]
[1729601056865,5.19099647,66958.0,66957.0,0.006]
[1729601057944,5.20399647,66958.0,66957.0,0.007]
[1729601058171,5.20198835,66958.0,66957.0,0.007]
[1729601058384,5.3649475,66958.0,66957.0,0.007]
[1729601058835,5.3519475,66958.0,66957.0,0.006]
[1729601059297,5.3649475,66958.0,66957.0,0.007]
[1729601059519,5.3519475,66958.0,66957.0,0.006]
[1729601060110,0.287358,66953.0,66952.0,0.000844]
[1729601060288,5.36049674,66953.0,66952.0,0.000844]
[1729601060463,5.46601359,66953.0,66952.0,0.000844]
[1729601060679,5.47101359,66953.0,66952.0,0.000844]
[1729601061104,5.47301359,66953.0,66952.0,0.000844]
[1729601061318,5.52445589,66953.0,66952.0,0.001844]
[1729601061532,5.52445589,66953.0,66951.0,0.0175898]
[1729601061533,0.28936,66952.0,66951.0,0.0175898]
[1729601061733,5.19099915,66952.0,66951.0,0.0175898]
[1729601061943,0.289362,66951.0,66950.0,0.04633276]
[1729601062152,0.289362,66951.0,66943.0,9e-05]
[1729601062153,0.015,66944.0,66943.0,9e-05]
[1729601062365,0.015,66944.0,66928.0,0.0233843]
[1729601062366,0.015,66944.0,66929.0,0.15839999]
[1729601062367,0.189387,66940.0,66929.0,0.15839999]
[1729601062626,0.189387,66940.0,66930.0,0.2246037]
[1729601062627,0.42590439,66931.0,66930.0,0.2246037]
[1729601062793,0.75195354,66931.0,66930.0,0.000845]
[1729601063009,5.47650269,66931.0,66930.0,0.000845]
[1729601063207,5.38144978,66931.0,66930.0,0.000845]
[1729601063413,5.47618339,66931.0,66930.0,0.000845]
[1729601063622,5.56454012,66931.0,66930.0,0.000845]
[1729601064037,5.58754012,66931.0,66930.0,0.000845]
[1729601064247,5.32322978,66931.0,66930.0,0.000845]
[1729601064458,5.48808225,66931.0,66930.0,0.000845]
[1729601064675,5.62152816,66931.0,66930.0,0.00055226]
[1729601064876,5.64952816,66931.0,66930.0,0.00155226]
[1729601065085,5.63552816,66931.0,66930.0,0.00055226]
[1729601065313,5.59926831,66931.0,66930.0,0.00055226]
[1729601065516,5.41677092,66931.0,66930.0,0.00155226]
[1729601065724,5.41736768,66931.0,66930.0,0.00155226]
[1729601066142,5.40355059,66931.0,66930.0,0.00155226]
[1729601066356,5.33941269,66931.0,66930.0,0.00155226]
[1729601067224,5.36241269,66931.0,66930.0,0.00155226]
[1729601067439,5.40647299,66931.0,66930.0,0.00155226]
[1729601067653,5.40447299,66931.0,66930.0,0.00155226]
[1729601068091,5.40647299,66931.0,66930.0,0.00155226]
[1729601068305,5.40447299,66931.0,66930.0,0.00155226]
[1729601069390,5.36041269,66931.0,66930.0,0.00155226]
[1729601071158,5.18845354,66931.0,66930.0,0.00155226]
[1729601071364,5.19448409,66931.0,66930.0,0.00155226]
[1729601072046,5.18448409,66931.0,66930.0,0.00155226]
[1729601072248,5.04052494,66931.0,66930.0,0.00155226]
[1729601072448,5.0403452,66931.0,66930.0,0.00155226]
[1729601072652,5.0353452,66931.0,66930.0,0.00155226]
[1729601073263,5.18430435,66931.0,66930.0,0.00155226]
[1729601073486,5.17030435,66931.0,66930.0,0.00055226]
[1729601073705,5.15630435,66931.0,66930.0,0.00055226]
[1729601074115,5.16830435,66931.0,66930.0,0.00055226]
[1729601074526,5.18030435,66931.0,66930.0,0.00155226]
[1729601075045,5.0313452,66931.0,66930.0,0.00155226]
[1729601075920,5.0263452,66931.0,66930.0,0.00155226]
[1729601077075,0.14942,66925.0,66924.0,0.02338991]
[1729601077295,4.82501,66925.0,66924.0,0.02338991]
[1729601078428,4.83101,66925.0,66924.0,0.02338991]
[1729601078632,4.83601,66925.0,66924.0,0.02338991]
[1729601078838,0.149432,66920.0,66914.0,0.000845]
[1729601078992,4.725022,66920.0,66914.0,0.000845]
[1729601079171,1.610432,66920.0,66914.0,0.000845]
[1729601079612,0.149,66920.0,66914.0,0.000845]
[1729601079819,0.149429,66921.0,66920.0,0.1797]
[1729601080043,0.149429,66921.0,66920.0,0.17947395]
[1729601081328,0.153429,66921.0,66920.0,0.17947395]
[1729601081542,2.001429,66921.0,66920.0,0.17947395]
[1729601081778,2.177,66921.0,66920.0,0.17947395]
[1729601082000,0.004,66921.0,66920.0,0.17947395]
[1729601082433,0.153429,66921.0,66920.0,0.17947395]
[1729601082654,0.004,66921.0,66920.0,0.17947395]
[1729601082871,0.153429,66921.0,66920.0,0.17947395]
[1729601084412,0.153429,66921.0,66920.0,0.17933695]
[1729601085497,0.153429,66921.0,66920.0,0.18016295]
[1729601085998,0.153429,66921.0,66920.0,0.3291221]
[1729601085999,0.004,66921.0,66920.0,0.3291221]
[1729601086451,0.29884,66926.0,66920.0,0.3291221]
[1729601086661,4.57559,66925.0,66921.0,0.14895915]
[1729601086876,0.149423,66924.0,66921.0,0.14895915]
[1729601087536,0.149426,66923.0,66921.0,0.14895915]
[1729601087982,0.150423,66924.0,66921.0,0.15595915]
[1729601088485,0.150423,66924.0,66922.0,0.177]
[1729601088486,0.001,66924.0,66922.0,0.177]
[1729601088737,0.001,66924.0,66923.0,0.32595915]
[1729601089393,0.149415,66928.0,66923.0,0.14895915]
[1729601089638,0.149414,66928.0,66924.0,0.1751]
[1729601089860,0.149417,66927.0,66924.0,0.1751]
[1729601090071,0.298828,66928.0,66924.0,0.1751]
[1729601090072,0.149419,66926.0,66924.0,0.1751]
[1729601090290,0.14942,66925.0,66924.0,0.1751]
[1729601090765,0.14942,66925.0,66924.0,0.1791]
[1729601091207,0.14942,66925.0,66924.0,0.1761]
[1729601091854,0.3341281,66925.0,66924.0,0.001]
[1729601092510,0.3341281,66925.0,66924.0,0.005]
[1729601092727,0.24942,66925.0,66924.0,0.00624137]
[1729601092934,4.82501,66925.0,66924.0,0.005]
[1729601093152,4.99650739,66925.0,66924.0,0.005]
[1729601093408,0.149429,66921.0,66920.0,0.02421546]
[1729601093620,4.99651639,66921.0,66920.0,0.02421546]
[1729601093839,5.01034699,66921.0,66920.0,0.02421546]
[1729601094295,5.48476268,66921.0,66920.0,0.02421546]
[1729601094548,5.75862048,66921.0,66920.0,0.02407846]
[1729601094778,5.75862048,66921.0,66918.0,0.05999999]
[1729601094779,0.154434,66919.0,66918.0,0.05999999]
[1729601094993,5.0158095,66919.0,66918.0,0.05999999]
[1729601095437,5.26684923,66919.0,66918.0,0.05999999]
[1729601095649,5.34769205,66919.0,66918.0,0.05999999]
[1729601096114,5.25949563,66919.0,66918.0,0.05999999]
[1729601096325,5.09665232,66919.0,66918.0,0.05999999]
[1729601096545,5.16282447,66919.0,66918.0,0.05999999]
[1729601096766,5.03692466,66919.0,66918.0,0.05999999]
[1729601096988,4.9968095,66919.0,66918.0,0.06099999]
[1729601097245,5.03192466,66919.0,66918.0,0.05999999]
[1729601097464,5.62363933,66919.0,66918.0,0.06099999]
[1729601097694,5.64553342,66919.0,66918.0,0.06099999]
[1729601098129,5.52144291,66919.0,66918.0,0.06091269]
[1729601098354,5.51761656,66919.0,66918.0,0.06173869]
[1729601098791,5.50361656,66919.0,66918.0,0.06073869]
[1729601099234,5.3233548,66919.0,66918.0,0.06073869]
[1729601099451,5.25764174,66919.0,66918.0,0.06073869]
[1729601099661,5.00652139,66919.0,66918.0,0.06173869]
[1729601099926,5.0406492,66919.0,66918.0,0.06073869]
[1729601100167,5.01052139,66919.0,66918.0,0.06073869]
[1729601100384,5.02452139,66919.0,66918.0,0.06173869]
[1729601100593,5.36562798,66919.0,66918.0,0.06073869]
[1729601100813,5.29085278,66919.0,66918.0,0.06073869]
[1729601101037,5.32385278,66919.0,66918.0,0.06073869]
[1729601101973,5.33385278,66919.0,66918.0,0.06173869]
[1729601104198,5.33785278,66919.0,66918.0,0.06173869]
[1729601104889,0.42593839,66916.0,66915.0,0.0075]
[1729601105118,5.42468281,66916.0,66915.0,0.0075]
[1729601105372,5.42468281,66916.0,66900.0,0.00035]
[1729601105373,0.005,66902.0,66900.0,0.00035]
[1729601105623,5.25253147,66902.0,66900.0,0.00035]
[1729601105852,5.73498641,66902.0,66900.0,0.00035]
[1729601106087,5.94206053,66902.0,66900.0,0.00035]
[1729601106342,5.94199734,66902.0,66900.0,0.00035]
[1729601106572,0.45898039,66897.0,66896.0,0.06749999]
[1729601106788,0.77087583,66897.0,66896.0,0.06749999]
[1729601107016,5.42730865,66897.0,66896.0,0.06749999]
[1729601107251,5.51549833,66897.0,66896.0,0.06749999]
[1729601107467,5.42730865,66897.0,66896.0,0.06749999]
[1729601108248,5.42930865,66897.0,66896.0,0.06749999]
[1729601108493,0.27749,66894.0,66893.0,0.000845]
[1729601108726,5.1434983,66894.0,66893.0,0.000845]
[1729601108994,5.18218862,66894.0,66893.0,0.000845]
[1729601109264,5.22625387,66894.0,66893.0,0.000845]
[1729601109495,5.08479472,66894.0,66893.0,0.000845]
[1729601109701,4.99303915,66894.0,66893.0,0.000845]
[1729601110559,5.16453654,66894.0,66893.0,0.000845]
[1729601110821,5.17853654,66894.0,66893.0,0.000845]
[1729601111041,5.20153654,66894.0,66893.0,0.000845]
[1729601111265,5.35049569,66894.0,66893.0,0.000845]
[1729601111551,5.35049569,66894.0,66875.0,0.05999999]
[1729601111552,0.015,66887.0,66875.0,0.05999999]
[1729601111789,0.77945893,66887.0,66877.0,0.2237587]
[1729601112016,5.05074447,66887.0,66877.0,0.2237587]
[1729601112275,5.22389436,66887.0,66875.0,0.05999999]
[1729601112518,5.14555154,66887.0,66875.0,0.05999999]
[1729601112741,5.15055154,66887.0,66875.0,0.05999999]
[1729601112962,5.17455154,66887.0,66875.0,0.05999999]
[1729601113185,5.20255154,66887.0,66875.0,0.05999999]
[1729601113397,5.34251069,66887.0,66875.0,0.05999999]
[1729601113833,5.19555154,66887.0,66878.0,0.0806]
[1729601114068,5.20055154,66887.0,66879.0,0.2237587]
[1729601114298,5.01859239,66887.0,66878.0,0.0806]
[1729601114532,5.01859239,66887.0,66879.0,0.3732817]
[1729601114533,4.59759,66887.0,66879.0,0.3732817]
[1729601114773,4.59759,66887.0,66878.0,0.0806]
[1729601114774,4.747095,66887.0,66878.0,0.0806]
[1729601115028,5.06755154,66887.0,66878.0,0.0806]
[1729601115533,4.91859239,66887.0,66878.0,0.0806]
[1729601115773,5.01859239,66887.0,66878.0,0.0806]
[1729601116057,4.847095,66887.0,66878.0,0.0806]
[1729601116283,5.01859239,66887.0,66878.0,0.0806]
[1729601117490,4.69759,66887.0,66878.0,0.0806]
[1729601117728,4.69759,66887.0,66875.0,0.28375869]
[1729601117729,2.871,66887.0,66886.0,0.38120799]
[1729601118708,2.861,66887.0,66886.0,0.23169999]
[1729601118949,1.063,66887.0,66886.0,0.38345031]
[1729601119201,0.00604852,66894.0,66887.0,0.299009]
[1729601119202,4.57559,66893.0,66887.0,0.299009]
[1729601119458,4.57559,66893.0,66886.0,0.38120599]
[1729601119459,0.2237587,66891.0,66886.0,0.38120599]
[1729601119678,4.57559,66893.0,66886.0,0.38220799]
[1729601119679,0.001,66887.0,66886.0,0.38220799]
[1729601119913,0.001,66887.0,66886.0,0.23269999]
[1729601119914,4.57659,66887.0,66886.0,0.23269999]
[1729601120569,4.57659,66887.0,66886.0,0.38220799]
[1729601120790,0.001,66887.0,66886.0,0.38545071]
[1729601121434,1.77,66888.0,66887.0,0.149505]
[1729601121685,3.317,66890.0,66886.0,0.53171499]
[1729601121919,0.002,66891.0,66888.0,0.149503]
[1729601122148,2.551,66890.0,66888.0,0.149503]
[1729601122372,2.551,66890.0,66889.0,0.00224266]
[1729601122585,2.551,66890.0,66888.0,0.149503]
[1729601122798,0.001652,66921.0,66893.0,0.149491]
[1729601122799,0.1,66900.0,66893.0,0.149491]
[1729601123048,0.001,66890.0,66889.0,0.46995754]
[1729601123284,0.0498942,66899.0,66891.0,0.29899]
[1729601123285,0.1,66898.0,66891.0,0.29899]
[1729601123528,0.2237587,66896.0,66892.0,0.149494]
[1729601123768,2.138,66895.0,66891.0,0.149496]
[1729601123989,2.138,66895.0,66888.0,0.300006]
[1729601123990,3.56449,66894.0,66888.0,0.001]
[1729601124222,0.156,66893.0,66889.0,0.149501]
[1729601124463,0.667,66892.0,66888.0,0.299003]
[1729601124696,0.2237587,66899.0,66891.0,0.001]
[1729601124697,4.488,66896.0,66891.0,0.001]
[1729601124913,4.67559,66898.0,66891.0,0.001]
[1729601125138,0.347,66897.0,66891.0,0.001]
[1729601125353,0.001,66894.0,66891.0,0.001]
[1729601125572,0.001,66894.0,66893.0,0.149492]
[1729601125803,0.1,66898.0,66894.0,0.0782]
[1729601126024,0.001,66896.0,66895.0,0.249288]
[1729601126241,0.001,66896.0,66895.0,0.71976139]
[1729601126475,0.1,66901.0,66900.0,0.149476]
[1729601126717,0.1,66901.0,66900.0,0.40057339]
[1729601126944,0.14945,66912.0,66900.0,0.49515654]
[1729601127168,3.181,66911.0,66910.0,0.149454]